bitfinex-derivatives/quotes_SOLF0:USTF0_20260211
["timestamp","ask_amount","ask_price","bid_price","bid_amount"]
[1770795513341,3.91369353,81.097,81.04,11.1138]
[1770795513537,108.32,81.096,81.043,4.00853363]
[1770795513742,112.23369353,81.096,81.043,4.00853363]
[1770795513944,3.91369353,81.095,81.043,4.00853363]
[1770795514250,3.91369353,81.095,81.02,8.34794462]
[1770795514251,3.91369353,81.084,81.029,4.00853363]
[1770795514949,3.91369353,81.082,81.014,4.00853363]
[1770795515139,3.91369353,81.069,81.0,4.00853363]
[1770795515946,3.91369353,81.047,80.985,4.00853363]
[1770795516143,11.1128,81.048,80.985,4.00853363]
[1770795516144,3.91369353,81.045,80.985,4.00853363]
[1770795516450,112.43369353,81.045,80.985,4.00853363]
[1770795517446,3.91369353,81.06,80.997,4.00853363]
[1770795518546,3.91369353,81.06,81.001,4.00853363]
[1770795518749,3.91369353,81.06,81.006,4.00853363]
[1770795519750,3.91369353,81.06,81.013,4.00853363]
[1770795522251,3.91369353,81.06,81.015,4.00853363]
[1770795522751,3.91369353,81.072,81.015,4.00853363]
[1770795524053,3.91369353,81.072,81.018,4.00853363]
[1770795524746,3.91369353,81.072,80.986,98.46]
[1770795524747,3.91369353,81.059,81.001,4.00853363]
[1770795525748,3.91369353,81.058,81.003,11.1189]
[1770795527146,3.91369353,81.058,81.003,15.12743363]
[1770795527346,3.91369353,81.058,81.001,4.00853363]
[1770795527347,3.91369353,81.093,81.031,4.00853363]
[1770795529154,3.91369353,81.093,81.04,11.1139]
[1770795532657,3.91369353,81.093,81.04,15.00022508]
[1770795535349,3.91369353,81.093,81.01,35.35095355]
[1770795535350,3.91369353,81.093,81.03,3.88632508]
[1770795536446,3.91369353,81.093,81.033,11.1149]
[1770795537055,3.92895816,81.086,81.03,3.88632508]
[1770795537452,3.92895816,81.084,81.03,3.88632508]
[1770795538649,11.1078,81.085,81.03,3.88632508]
[1770795538650,3.92895816,81.08,81.03,3.88632508]
[1770795539061,3.92895816,81.079,81.011,3.88632508]
[1770795539558,3.92895816,81.078,81.011,3.88632508]
[1770795540757,3.92895816,81.067,81.011,3.88632508]
[1770795541756,11.1107,81.064,81.011,3.88632508]
[1770795541962,3.92895816,81.063,81.011,3.88632508]
[1770795542553,3.92895816,81.059,81.011,3.88632508]
[1770795543362,3.92895816,81.072,81.011,3.88632508]
[1770795544861,11.1098,81.07,81.02,3.1184526]
[1770795545058,11.1098,81.07,81.021,3.88632508]
[1770795546463,3.92895816,81.064,81.021,3.88632508]
[1770795546858,3.1184526,81.06,81.021,3.88632508]
[1770795547559,3.92895816,81.059,81.021,3.88632508]
[1770795547757,3.92895816,81.059,81.01,3.1184526]
[1770795548656,3.92895816,81.059,81.01,7.00477768]
[1770795548859,11.1127,81.05,81.01,7.00477768]
[1770795549058,3.92895816,81.059,81.011,3.88632508]
[1770795550354,3.1184526,81.05,81.011,3.88632508]
[1770795551965,11.1117,81.056,81.011,3.88632508]
[1770795557770,11.1121,81.054,81.011,3.88632508]
[1770795557969,3.92895816,81.053,81.011,3.88632508]
[1770795558172,3.92895816,81.033,80.981,3.88632508]
[1770795558367,3.1184526,81.03,80.981,3.88632508]
[1770795558872,3.92895816,81.033,80.99,3.1184526]
[1770795559270,3.92895816,81.047,81.001,3.88632508]
[1770795561571,11.1131,81.046,81.001,3.88632508]
[1770795562361,9.11154601,81.065,81.011,3.78842475]
[1770795562665,4.01206432,81.064,81.03,3.1184526]
[1770795563064,4.01206432,81.064,80.978,37.06]
[1770795563065,4.01206432,81.078,81.04,3.1184526]
[1770795563565,4.01206432,81.078,81.031,0.50010306]
[1770795564373,4.01206432,81.069,81.01,3.1184526]
[1770795564575,4.01206432,81.059,81.01,3.5666744]
[1770795564773,4.01206432,81.059,81.011,0.4493758]
[1770795567577,7.07913595,81.05,81.011,0.4493758]
[1770795567778,3.95990847,81.039,80.998,0.43579627]
[1770795567978,3.95990847,81.039,80.99,3.11922748]
[1770795570874,3.95990847,81.039,80.99,0.34435999]
[1770795572274,9.26587256,81.057,81.0,0.30528045]
[1770795572476,3.99156154,81.074,81.021,0.30528045]
[1770795572675,3.99156154,81.107,81.021,0.30528045]
[1770795572880,3.99156154,81.105,81.021,0.30528045]
[1770795573179,4.02571165,81.09,81.03,0.23698023]
[1770795573485,4.02571165,81.088,81.03,0.23698023]
[1770795573681,4.02571165,81.086,81.03,0.23698023]
[1770795573877,4.02571165,81.085,81.03,0.23698023]
[1770795574188,4.02571165,81.08,81.03,0.23698023]
[1770795574382,4.02571165,81.08,81.02,11.1166]
[1770795574578,4.02571165,81.07,81.014,0.23698023]
[1770795575581,4.06314972,81.069,81.026,0.16210409]
[1770795576879,4.06314972,81.069,81.016,11.1172]
[1770795578279,4.036186,81.067,81.016,11.1172]
[1770795581185,11.1104,81.066,81.016,11.1172]
[1770795581388,11.1104,81.066,81.012,0.16210409]
[1770795581389,13.4137181,81.065,81.012,0.16210409]
[1770795581688,4.14014691,81.063,81.012,0.16210409]
[1770795581988,4.14014691,81.061,81.012,0.16210409]
[1770795582284,4.14014691,81.059,81.012,0.16210409]
[1770795583883,4.13946346,81.057,81.0,8.36016048]
[1770795584086,4.13946346,81.055,80.98,8.36016048]
[1770795584389,4.13946346,81.053,80.98,8.36016048]
[1770795584589,4.13946346,81.051,80.98,8.36016048]
[1770795584789,4.13946346,81.049,80.98,8.36016048]
[1770795585087,4.13946346,81.047,80.98,8.36016048]
[1770795585681,4.13946346,81.047,80.988,11.1209]
[1770795588793,4.17957119,81.045,80.988,11.1209]
[1770795589689,11.1136,81.043,80.988,11.1209]
[1770795589894,4.18504245,81.042,80.988,11.1209]
[1770795590999,4.18504245,81.042,80.99,3.12086005]
[1770795592598,4.18504245,81.042,80.992,11.1205]
[1770795595600,4.18504245,81.042,81.0,3.12086005]
[1770795596800,3.12086005,81.04,80.983,11.1217]
[1770795596999,4.19058143,81.039,80.99,3.12086005]
[1770795597505,4.19058143,81.039,80.991,11.1206]
[1770795597901,4.18877493,81.019,80.97,3.12086005]
[1770795598101,4.18877493,81.019,80.98,3.12086005]
[1770795599305,4.17004694,81.028,80.98,3.12086005]
[1770795600810,4.17004694,81.028,80.99,3.12086005]
[1770795601410,4.17004694,81.028,80.98,3.12086005]
[1770795603206,4.22415485,80.999,80.95,3.12086005]
[1770795604309,4.22415485,80.989,80.94,3.12086005]
[1770795604707,4.22415485,80.989,80.95,3.12086005]
[1770795605712,4.22415485,80.989,80.94,3.12086005]
[1770795606113,4.22415485,80.989,80.96,3.12086005]
[1770795606615,4.22415485,80.989,80.95,3.12086005]
[1770795608510,4.19553852,81.001,80.97,3.12086005]
[1770795609011,4.19553852,81.019,80.97,3.12086005]
[1770795609314,4.23496605,81.017,80.97,3.12086005]
[1770795610819,4.23496605,81.014,80.97,3.12086005]
[1770795611324,4.23496605,81.014,80.96,3.12086005]
[1770795611713,4.22038347,81.011,80.96,3.12086005]
[1770795612111,4.22038347,81.011,80.97,3.12086005]
[1770795616219,4.28746917,81.009,80.96,3.12086005]
[1770795616624,4.28746917,80.999,80.95,3.12086005]
[1770795616919,4.28746917,80.989,80.94,3.12086005]
[1770795617822,4.28746917,80.989,80.95,3.12086005]
[1770795623723,4.28746917,80.989,80.921,12.2785807]
[1770795623724,4.28746917,80.989,80.94,3.12086005]
[1770795624317,4.28746917,80.989,80.95,3.12086005]
[1770795624928,4.28746917,80.989,80.95,3.12452965]
[1770795625229,4.28746917,80.989,80.94,3.12452965]
[1770795627832,4.25598678,80.986,80.94,3.12452965]
[1770795628834,4.25598678,80.986,80.93,3.12452965]
[1770795629129,4.25598678,80.986,80.94,3.12452965]
[1770795629326,3.12452965,80.99,80.94,3.12452965]
[1770795629527,4.26446355,80.999,80.94,3.12452965]
[1770795629932,4.26446355,80.999,80.95,3.12452965]
[1770795631533,4.25204078,80.989,80.943,11.1272]
[1770795631923,4.25204078,80.989,80.95,3.12452965]
[1770795632822,4.25204078,80.989,80.94,3.12452965]
[1770795633028,4.25204078,80.979,80.934,11.1284]
[1770795633732,4.25253447,80.978,80.923,11.1299]
[1770795634040,4.25253447,80.978,80.93,3.12452965]
[1770795634537,4.25253447,80.969,80.92,3.12452965]
[1770795635336,4.25253447,80.969,80.921,11.1301]
[1770795635733,4.25253447,80.969,80.92,3.12452965]
[1770795636336,4.25253447,80.969,80.93,3.12452965]
[1770795636539,4.2327808,80.981,80.94,3.12452965]
[1770795636937,98.56,81.001,80.93,3.12452965]
[1770795636938,18.47951045,80.98,80.93,3.12452965]
[1770795637139,4.23980657,80.979,80.93,3.12452965]
[1770795638137,4.23980657,80.969,80.92,3.12452965]
[1770795638546,4.23980657,80.959,80.91,3.12452965]
[1770795639340,4.23980657,80.959,80.867,37.06]
[1770795639341,4.22348522,80.949,80.9,3.12452965]
[1770795639843,4.22348522,80.949,80.885,11.1351]
[1770795639844,4.22348522,80.965,80.92,3.12452965]
[1770795640041,4.22348522,80.963,80.92,3.12452965]
[1770795640639,4.22348522,80.963,80.91,3.12452965]
[1770795640838,4.22348522,80.963,80.887,98.56]
[1770795640839,11.1231,80.973,80.93,3.12452965]
[1770795641641,4.24201993,80.972,80.93,3.12452965]
[1770795642036,4.24201993,80.972,80.89,22.78880703]
[1770795642242,4.24201993,80.939,80.89,3.12452965]
[1770795642546,4.24201993,80.955,80.91,3.12452965]
[1770795642744,15.36781993,80.954,80.91,3.12452965]
[1770795642942,4.24201993,80.939,80.882,98.58]
[1770795643143,4.24201993,80.939,80.89,3.12452965]
[1770795645046,4.24201993,80.939,80.891,0.12798279]
[1770795645748,4.08244572,80.935,80.891,0.12798279]
[1770795646248,4.08244572,80.933,80.891,0.12798279]
[1770795646852,98.58,80.955,80.869,0.12798279]
[1770795646853,4.08244572,80.928,80.869,0.12798279]
[1770795647146,4.08244572,80.909,80.871,0.21493791]
[1770795647352,3.12452965,80.93,80.88,3.12452965]
[1770795647650,4.05097322,80.929,80.88,3.12452965]
[1770795648349,4.05097322,80.929,80.89,3.12452965]
[1770795649045,4.05097322,80.926,80.881,0.21493791]
[1770795649249,4.05097322,80.919,80.87,3.12452965]
[1770795649644,4.05097322,80.918,80.87,3.12452965]
[1770795650051,4.05097322,80.909,80.868,0.31202365]
[1770795650252,11.1322,80.907,80.868,0.31202365]
[1770795650448,4.09610497,80.906,80.868,0.31202365]
[1770795650649,4.09610497,80.906,80.86,3.12452965]
[1770795651049,3.12452965,80.93,80.881,0.29158792]
[1770795651250,4.09610497,80.932,80.891,0.29158792]
[1770795651444,11.1303,80.921,80.891,8.792e-05]
[1770795651755,4.14337447,80.92,80.88,3.12452965]
[1770795652858,11.1314,80.913,80.88,3.12452965]
[1770795653060,11.1314,80.913,80.89,3.12452965]
[1770795653454,11.1314,80.913,80.89,2.965e-05]
[1770795654156,11.1314,80.913,80.88,3.12452965]
[1770795654753,11.1297,80.926,80.89,3.12452965]
[1770795655760,4.11922542,80.958,80.91,3.12452965]
[1770795656061,4.11922542,80.958,80.9,3.12452965]
[1770795656457,4.11922542,80.958,80.91,3.12452965]
[1770795657853,11.1258,80.954,80.91,3.12452965]
[1770795658058,4.11922542,80.958,80.91,3.12452965]
[1770795658757,4.11922542,80.958,80.91,3.12746685]
[1770795660455,4.11922542,80.958,80.92,3.12746685]
[1770795660662,4.11922542,80.958,80.91,3.12746685]
[1770795661651,4.11922542,80.958,80.9,3.12746685]
[1770795661857,4.11922542,80.958,80.91,3.12746685]
[1770795665453,11.1255,80.956,80.91,3.12746685]
[1770795665657,9.63096355,80.955,80.91,3.12746685]
[1770795666666,9.63096355,80.953,80.91,3.12746685]
[1770795667964,9.62304605,80.95,80.91,3.12746685]
[1770795669767,9.64796363,80.947,80.91,3.12746685]
[1770795673563,9.64796363,80.947,80.888,11.1347]
[1770795673757,9.64796363,80.947,80.91,3.12746685]
[1770795677974,9.82091298,80.939,80.89,3.12746685]
[1770795679569,9.82091298,80.939,80.9,3.12746685]
[1770795681772,9.82091298,80.939,80.89,14.26186685]
[1770795684081,9.76510782,80.929,80.881,11.1357]
[1770795684675,9.76510782,80.929,80.89,3.12746685]
[1770795685676,9.76510782,80.929,80.881,11.1357]
[1770795687078,9.76510782,80.929,80.89,3.1291991]
[1770795688383,9.76510782,80.929,80.9,14.2622991]
[1770795688676,9.76510782,80.929,80.9,3.1291991]
[1770795688878,9.76510782,80.929,80.89,3.1291991]
[1770795689284,9.76510782,80.929,80.864,22.95149734]
[1770795689480,9.76510782,80.929,80.861,98.62]
[1770795689481,9.76510782,80.929,80.89,3.1291991]
[1770795691285,9.76510782,80.929,80.88,3.1291991]
[1770795692076,9.76510782,80.929,80.89,3.1291991]
[1770795692277,9.65670466,80.919,80.87,3.1291991]
[1770795692483,3.1291991,80.91,80.86,3.1291991]
[1770795692785,9.65670466,80.909,80.86,3.1291991]
[1770795694580,9.65670466,80.909,80.87,3.1291991]
[1770795697076,9.65670466,80.909,80.86,3.1291991]
[1770795700189,9.65670466,80.909,80.87,3.1291991]
[1770795700786,9.65670466,80.909,80.87,14.2663991]
[1770795701098,9.67852245,80.929,80.88,3.1291991]
[1770795702090,9.67852245,80.929,80.87,14.2663991]
[1770795702588,9.67852245,80.929,80.88,3.1291991]
[1770795706602,9.67852245,80.929,80.882,11.1355]
[1770795707698,9.67852245,80.929,80.88,3.1291991]
[1770795708799,9.70750986,80.909,80.86,3.1291991]
[1770795710696,9.70750986,80.909,80.88,3.1291991]
[1770795711195,9.70734425,80.927,80.88,3.1291991]
[1770795713204,9.70734425,80.927,80.89,3.1291991]
[1770795717097,9.70734425,80.927,80.87,11.1373]
[1770795717296,9.70734425,80.927,80.89,3.1291991]
[1770795717496,9.70734425,80.927,80.88,3.1291991]
[1770795718300,9.70734425,80.927,80.89,3.1291991]
[1770795718805,9.70734425,80.927,80.88,3.1291991]
[1770795719100,3.1291991,80.92,80.86,11.1385]
[1770795719309,9.72489183,80.919,80.86,3.1291991]
[1770795720013,9.72489183,80.909,80.85,3.1291991]
[1770795720197,9.72489183,80.899,80.85,3.1291991]
[1770795720397,9.72489183,80.899,80.86,3.1291991]
[1770795721702,9.72489183,80.899,80.87,3.1291991]
[1770795721904,9.72489183,80.899,80.86,3.1291991]
[1770795724410,9.72489183,80.899,80.87,3.1291991]
[1770795724607,9.72489183,80.899,80.855,11.1393]
[1770795724810,9.72489183,80.899,80.87,3.1291991]
[1770795725508,9.75548131,80.918,80.88,3.1291991]
[1770795725811,9.75548131,80.918,80.89,3.1291991]
[1770795726000,9.75548131,80.938,80.89,3.1291991]
[1770795726206,9.75548131,80.938,80.837,89.93600685]
[1770795726207,9.28895484,80.937,80.9,3.1291991]
[1770795726407,9.75548131,80.935,80.89,3.1291991]
[1770795726711,9.75548131,80.933,80.89,3.1291991]
[1770795727714,9.75548131,80.933,80.89,14.2636991]
[1770795730919,9.75548131,80.933,80.899,11.1332]
[1770795731121,9.75548131,80.933,80.89,3.1291991]
[1770795731318,9.75548131,80.933,80.89,14.2636991]
[1770795731615,9.78551534,80.919,80.87,3.1291991]
[1770795732124,37.06,80.959,80.858,98.64]
[1770795732125,9.78551534,80.937,80.9,3.1291991]
[1770795733116,9.78551534,80.937,80.89,3.1291991]
[1770795733310,9.78551534,80.937,80.877,11.1362]
[1770795733311,9.78551534,80.937,80.9,3.1291991]
[1770795733918,9.78551534,80.937,80.91,3.1291991]
[1770795734220,9.76102308,80.958,80.91,3.1291991]
[1770795734422,9.76102308,80.956,80.91,3.1291991]
[1770795734722,9.76102308,80.954,80.91,3.1291991]
[1770795735515,9.76102308,80.954,80.861,37.06]
[1770795735516,9.75040093,80.964,80.93,3.1291991]
[1770795738824,9.75040093,80.964,80.907,11.1322]
[1770795738825,9.75040093,80.964,80.92,3.1291991]
[1770795739121,9.75040093,80.964,80.907,11.1322]
[1770795739122,9.75040093,80.964,80.94,3.1291991]
[1770795739723,9.75040093,80.964,80.93,3.1291991]
[1770795741017,9.75040093,80.964,80.92,3.1291991]
[1770795742519,9.75040093,80.964,80.93,3.1291991]
[1770795743021,11.1235,80.971,80.93,3.1291991]
[1770795743218,9.65493001,80.97,80.93,3.1291991]
[1770795743820,9.65493001,80.967,80.93,3.1291991]
[1770795744217,11.1224,80.978,80.94,3.1291991]
[1770795745729,9.65493001,80.979,80.94,3.1291991]
[1770795749032,9.65493001,80.979,80.94,3.12515211]
[1770795751930,9.65493001,80.979,80.93,3.12515211]
[1770795752133,9.65493001,80.979,80.932,11.1287]
[1770795752738,9.65493001,80.979,80.94,3.12515211]
[1770795753231,9.65493001,80.979,80.941,11.1275]
[1770795753435,9.65493001,80.979,80.94,3.12515211]
[1770795757346,9.65493001,80.979,80.93,3.12515211]
[1770795758746,9.65493001,80.979,80.94,3.12515211]
[1770795764149,9.69729561,80.969,80.92,3.12515211]
[1770795764949,9.69729561,80.966,80.92,3.12515211]
[1770795766857,9.75076125,80.964,80.92,3.12515211]
[1770795767257,9.80616671,80.962,80.914,11.1312]
[1770795768956,9.80616671,80.962,80.92,3.12515211]
[1770795769359,9.80616671,80.962,80.93,3.12515211]
[1770795770757,9.80616671,80.962,80.893,98.58]
[1770795770758,9.8210019,80.989,80.94,3.12515211]
[1770795771059,9.8210019,80.989,80.96,3.12515211]
[1770795771762,9.8210019,80.989,80.97,3.12515211]
[1770795773157,9.94349107,81.015,80.97,3.12515211]
[1770795775359,9.94349107,81.015,80.96,3.12300833]
[1770795775866,9.94349107,81.015,80.962,11.1245]
[1770795776266,9.94349107,81.015,80.97,3.12300833]
[1770795781567,9.94349107,81.015,80.98,3.12300833]
[1770795783068,9.8962556,81.009,80.95,3.12300833]
[1770795783271,9.93720126,80.999,80.95,3.12300833]
[1770795785371,9.87130792,81.01,80.928,98.56]
[1770795785573,9.87130792,81.01,80.98,3.12300833]
[1770795786669,9.87130792,81.01,80.97,3.12300833]
[1770795788874,9.92703273,81.02,80.98,3.12300833]
[1770795790172,13.05004106,81.02,80.97,3.12300833]
[1770795790371,9.92286636,81.019,80.97,3.12300833]
[1770795790676,102.2,81.03,80.929,98.56]
[1770795790677,9.92286636,81.009,80.96,3.12300833]
[1770795793679,9.92286636,81.009,80.962,11.1246]
[1770795794678,11.1152,81.031,80.962,11.1246]
[1770795794977,294.0,81.176,80.962,11.1246]
[1770795794978,44.32184614,81.07,81.03,3.12300833]
[1770795795183,44.32184614,81.07,81.023,11.1162]
[1770795795478,37.18949501,81.049,80.99,3.12300833]
[1770795795672,40.31250334,81.04,80.99,3.12300833]
[1770795796175,37.18949501,81.04,80.99,3.12300833]
[1770795796368,3.12300833,81.07,81.01,3.12300833]
[1770795796572,3.12300833,81.09,81.04,3.12300833]
[1770795796767,3.12300833,81.08,81.03,3.12300833]
[1770795796970,3.12300833,81.06,81.016,11.1172]
[1770795797274,3.12300833,81.06,81.02,3.12300833]
[1770795797479,3.12300833,81.07,81.02,3.12300833]
[1770795798381,26.66145566,81.079,81.03,3.12300833]
[1770795798780,26.66145566,81.079,81.023,11.1162]
[1770795798981,26.66145566,81.079,81.035,11.1145]
[1770795799576,26.66138073,81.109,81.06,11.111]
[1770795799772,8.073e-05,81.109,81.05,8.35259712]
[1770795799977,8.35259712,81.14,81.05,8.35259712]
[1770795800283,8.35259712,81.14,81.082,11.108]
[1770795801871,13.48055417,81.139,81.082,11.108]
[1770795813491,98.44,81.166,81.066,11.1103]
[1770795813492,13.39798136,81.131,81.066,11.1103]
[1770795813890,13.39798136,81.131,81.076,11.1089]
[1770795814392,13.39798136,81.131,81.07,8.33912696]
[1770795815689,13.39798136,81.131,81.071,11.1096]
[1770795817495,11.1002,81.14,81.06,11.1111]
[1770795817496,13.28073915,81.121,81.06,11.1111]
[1770795819087,11.103,81.12,81.06,11.1111]
[1770795819292,13.26223091,81.119,81.06,11.1111]
[1770795820599,13.26223091,81.119,81.07,11.1097]
[1770795820989,13.26223091,81.119,81.07,14.2248414]
[1770795823997,13.30015218,81.109,81.036,475.39844959]
[1770795824305,13.30015218,81.099,81.04,3.1151414]
[1770795825006,13.30015218,81.099,81.036,475.39844959]
[1770795825805,13.30015218,81.099,81.052,11.1122]
[1770795826103,13.30015218,81.099,81.036,475.39844959]
[1770795826808,13.32406233,81.085,81.027,11.1157]
[1770795827012,8.34843141,81.08,81.027,11.1157]
[1770795827208,13.32406233,81.079,81.01,8.34843141]
[1770795827508,13.32406233,81.079,81.026,11.1157]
[1770795832606,13.35340185,81.075,80.99,35.34843141]
[1770795832799,13.35340185,81.059,80.97,8.34843141]
[1770795833198,13.34998646,81.048,80.983,11.1216]
[1770795833404,13.34998646,81.048,80.97,20.7629448]
[1770795834814,13.34998646,81.048,80.992,11.1205]
[1770795835715,13.30147651,81.046,80.98,11.122]
[1770795836712,11.1135,81.044,80.98,11.122]
[1770795837016,13.30147651,81.043,80.98,11.122]
[1770795838716,13.30147651,81.043,80.995,11.12]
[1770795839416,13.30147651,81.043,81.005,11.1186]
[1770795839808,13.30935545,81.059,81.005,11.1186]
[1770795840316,13.30935545,81.059,81.015,11.1172]
[1770795840810,13.30935545,81.077,81.028,11.1155]
[1770795841217,13.30935545,81.077,81.01,8.34843141]
[1770795841517,13.31729625,81.076,80.99,8.34843141]
[1770795842605,13.31729625,81.076,81.023,11.1162]
[1770795843018,13.31729625,81.076,80.986,98.46]
[1770795843019,13.31729625,81.076,81.01,8.34843141]
[1770795845407,13.31729625,81.076,81.034,11.1147]
[1770795847319,13.33515555,81.093,81.05,3.11780376]
[1770795847919,13.33515555,81.089,81.04,3.11780376]
[1770795848825,13.33515555,81.089,81.05,3.11780376]
[1770795849123,13.33515555,81.089,81.04,3.11780376]
[1770795850022,13.33515555,81.089,81.05,3.11780376]
[1770795850520,13.33515555,81.089,81.04,3.11780376]
[1770795851519,13.31677967,81.079,81.03,14.23300376]
[1770795851720,13.31677967,81.079,81.03,3.11780376]
[1770795852018,13.31677967,81.079,81.04,3.11780376]
[1770795852418,13.31677967,81.079,81.041,11.1137]
[1770795857626,13.31677967,81.079,81.04,3.11780376]
[1770795859133,13.31677967,81.079,81.032,11.1149]
[1770795860234,13.31677967,81.079,81.04,3.11780376]
[1770795862436,11.1073,81.089,81.05,3.11780376]
[1770795862835,13.36628086,81.088,81.05,3.11780376]
[1770795863729,13.36628086,81.088,80.999,98.46]
[1770795863730,13.35995119,81.102,81.07,3.11780376]
[1770795864329,11.4399893,81.144,81.021,37.08]
[1770795864330,13.35995119,81.099,81.05,3.11780376]
[1770795864735,13.35995119,81.099,81.06,3.11780376]
[1770795868540,11.1032,81.119,81.06,3.11780376]
[1770795868737,3.11780376,81.11,81.06,3.11780376]
[1770795868937,13.37445451,81.109,81.06,3.11780376]
[1770795869626,13.37445451,81.109,81.06,14.22900376]
[1770795870436,13.37445451,81.109,81.07,3.11780376]
[1770795870639,13.37445451,81.109,81.06,3.11780376]
[1770795870837,13.37445451,81.109,81.06,3.11553716]
[1770795871632,13.37445451,81.109,81.033,98.44]
[1770795871939,13.37445451,81.109,81.06,3.11553716]
[1770795872535,13.37445451,81.109,81.062,11.1108]
[1770795873638,13.37445451,81.109,81.06,3.11553716]
[1770795874640,13.37445451,81.109,81.07,3.11553716]
[1770795876833,13.37445451,81.109,81.061,11.1109]
[1770795877739,13.37445451,81.109,81.07,3.11553716]
[1770795878444,13.37993232,81.159,81.1,3.11553716]
[1770795878647,13.37993232,81.149,81.1,3.11553716]
[1770795879841,13.40381759,81.146,81.1,3.11553716]
[1770795880041,13.40381759,81.146,81.11,3.11553716]
[1770795880644,13.40381759,81.146,81.1,3.11553716]
[1770795884849,13.40927655,81.139,81.094,11.1064]
[1770795885057,13.40927655,81.129,81.08,3.11553716]
[1770795885751,13.40927655,81.129,81.081,11.1082]
[1770795886446,13.40927655,81.129,81.08,3.11553716]
[1770795888757,13.40927655,81.129,81.09,3.11553716]
[1770795889252,13.40927655,81.129,81.1,3.11553716]
[1770795890550,13.40588642,81.149,81.1,3.11553716]
[1770795891260,11.0993,81.147,81.1,3.11553716]
[1770795891558,13.4418186,81.146,81.1,3.11553716]
[1770795892061,13.4418186,81.146,81.11,3.11553716]
[1770795892262,13.4418186,81.146,81.098,11.1058]
[1770795892263,13.4418186,81.146,81.1,3.11553716]
[1770795893258,13.4418186,81.139,81.098,11.1058]
[1770795893761,13.4418186,81.139,81.086,11.1076]
[1770795893954,13.4418186,81.139,81.09,3.11553716]
[1770795896053,13.4418186,81.139,81.086,11.1076]
[1770795896255,13.37524283,81.154,81.11,3.11553716]
[1770795897164,13.40802255,81.169,81.12,3.11553716]
[1770795897359,13.40802255,81.169,81.12,3.11044789]
[1770795898866,13.40802255,81.169,81.121,11.1027]
[1770795899660,13.40802255,81.169,81.12,3.11044789]
[1770795900160,11.0964,81.168,81.111,11.1041]
[1770795900355,13.42632891,81.149,81.101,11.1055]
[1770795900557,13.42632891,81.161,81.11,3.11044789]
[1770795900761,13.42632891,81.161,81.12,3.11044789]
[1770795900961,3.11044789,81.15,81.1,3.11044789]
[1770795901162,13.42632891,81.149,81.1,3.11044789]
[1770795903773,13.35314272,81.165,81.12,3.11044789]
[1770795906867,13.38986989,81.159,81.113,11.1038]
[1770795907068,13.38986989,81.169,81.12,3.11044789]
[1770795907267,13.38780196,81.159,81.113,11.1038]
[1770795908573,13.38780196,81.159,81.11,3.11044789]
[1770795908775,13.38780196,81.139,81.09,3.11044789]
[1770795909070,13.38780196,81.139,81.025,176.0]
[1770795909071,13.39779678,81.129,81.08,3.11044789]
[1770795909275,3.11044789,81.11,81.072,11.1095]
[1770795909774,13.39779678,81.119,81.072,11.1095]
[1770795909969,13.39779678,81.119,81.08,3.11044789]
[1770795910169,13.39779678,81.119,81.072,11.1095]
[1770795910571,13.39779678,81.119,81.081,11.1082]
[1770795911170,13.39779678,81.119,81.071,11.1096]
[1770795911374,13.39779678,81.119,81.08,3.11044789]
[1770795912167,13.39779678,81.119,81.08,11.1084]
[1770795912575,13.39779678,81.119,81.07,3.11044789]
[1770795913275,13.36455372,81.136,81.1,3.11044789]
[1770795913570,13.36455372,81.149,81.1,3.11044789]
[1770795913772,13.36455372,81.149,81.11,3.11044789]
[1770795914077,13.36455372,81.149,81.101,11.1055]
[1770795914775,13.36455372,81.149,81.11,3.11044789]
[1770795914983,13.36455372,81.149,81.101,11.1055]
[1770795915679,13.47421094,81.164,81.11,11.1042]
[1770795917281,13.47421094,81.164,81.12,11.1029]
[1770795918183,13.47421094,81.164,81.109,11.1044]
[1770795919579,13.47421094,81.164,81.118,11.1031]
[1770795922289,13.47421094,81.164,81.128,11.1018]
[1770795922982,13.47421094,81.164,81.119,11.103]
[1770795924682,13.44850952,81.161,81.08,8.33497918]
[1770795925089,13.44850952,81.159,81.08,8.33497918]
[1770795925281,8.33497918,81.17,81.08,8.33497918]
[1770795925282,13.43691589,81.156,81.08,8.33497918]
[1770795925476,13.43691589,81.154,81.08,8.33497918]
[1770795925680,13.43691589,81.152,81.08,8.33497918]
[1770795926283,13.43691589,81.126,81.08,8.33497918]
[1770795926477,13.43691589,81.126,81.077,11.1087]
[1770795928191,13.43691589,81.126,81.067,11.1101]
[1770795930185,11.1023,81.125,81.067,11.1101]
[1770795930384,13.39617804,81.124,81.067,11.1101]
[1770795931284,13.39961408,81.135,81.075,11.109]
[1770795932386,13.39961408,81.13,81.075,11.109]
[1770795933787,11.1018,81.129,81.075,11.109]
[1770795933989,13.40330233,81.128,81.075,11.109]
[1770795934994,13.40330233,81.128,81.08,3.11411759]
[1770795935889,3.11411759,81.14,81.09,3.11411759]